[Event "Cattolica Chess Festival 2022"]
[Site "Cattolica"]
[Date "2022.06.07"]
[Round "4.4"]
[White "Milikow, Yoav"]
[Black "Brunello, Sabino"]
[Result "0-1"]
[ECO "D11"]
[WhiteElo "2410"]
[BlackElo "2521"]
[Annotator "TA"]
[PlyCount "80"]
[EventDate "2022.06.04"]
[EventCountry "ITA"]
[SourceTitle "playchess.com"]
[Source "ChessBase"]
[SourceQuality "1"]
[TimeControl "5400+30"]

{[%evp 9,80,19,6,15,22,34,22,10,20,0,35,32,37,8,13,12,8,-24,-20,-14,-17,-34,9,0,0,0,0,-39,-49,-135,-141,-223,-216,-312,-257,-462,-446,-660,-659,-1070,-827,-787,-713,-686,-679,-621,-485,-556,-547,-544,-475,-473,0,-527,0,-472,-476,-472,-409,-445,-425,-634,-671,-658,-653,-825,-813,-1037,-1050,-1361,-1297,-1171,-1108]} 1. d4 {[%emt 0:30:05]} d5 {[%emt 0:31:39]} 2. c4 {[%emt 0:00:12]} c6 {[%emt 0:00:03]} 3. Nf3 {[%emt 0:00:07]} Nf6 {[%emt 0:00:07]} 4. g3 {[%emt 0:00:08]} Bg4 {[%emt 0:00:14]} 5. Ne5 {[%emt 0:00:31]} Bf5 {[%emt 0:00:48]} 6. cxd5 {[%emt 0:00:11] D11: Slav Defence: 3 Nf3 sidelines and 3...Nf6 4 e3 Bg4.} Bxb1 {[%emt 0:06:45]} 7. Rxb1 {[%emt 0:00:07][%cal Oe2e4]} Qxd5 {[%emt 0:00:13]} 8. f3 {[%emt 0:00:06] The position is equal.} Qxa2 {[%emt 0:00:44]} 9. Bd2 {[%emt 0:00:48][%cal Bc1d2,Bd2c3,Bc3d4][%mdl 32] [#]} Qe6 $146 {[%emt 0:03:50]} ({Predecessor:} 9... Qd5 10. e4 Qxd4 11. Qb3 Nxe4 12. Qxf7+ Kd8 13. Ba5+ {1-0 (13) Dreev,A (2657)-Loiacono,A (2317) Forni di Sopra 2019}) 10. e4 {[%emt 0:03:59] [#] Hoping for Bc4.} Qc8 $1 {[%emt 0:00:49]} 11. d5 {[%emt 0:05:20] Black must now prevent Qb3.} e6 $1 {[%emt 0:12:30]} 12. dxe6 {[%emt 0:02:35]} Qxe6 {[%emt 0:00:40]} 13. Bc3 {[%emt 0:09:21] Bc4 is the strong threat.} ({Don't play} 13. Ba5 Nbd7 14. Nd3 Bd6 $15) (13. f4 $5 {[%cal Rf1c4]} b5 14. Qc2 $11 (14. Ba5 Na6 $11)) 13... b5 {[%emt 0:01:13] Prevents Bc4.} 14. Nd3 {[%emt 0:12:33] Against Bc5} Nd5 {[%emt 0:20:55][%cal Bf6d5,Bd5b6,Bb6c4][%mdl 32]} 15. Bd4 {[%emt 0:03:02]} Nd7 {[%emt 0:00:10]} 16. Kf2 {[%emt 0:01:44]} N5b6 {[%emt 0:01:32]} 17. Nf4 {[%emt 0:01:16]} Qd6 {[%emt 0:00:39]} 18. b4 {[%emt 0:03:57]} Ne5 {[%emt 0:07:56] Prevents Qd3.} 19. Ne2 {[%emt 0:03:52] Black keeps a firm grip on the game.} (19. Be2 $15) 19... Rd8 $17 {[%emt 0:03:10] Black is more active.} 20. Bh3 {[%emt 0:01:02] [#]} (20. f4 $17 {might work better.} Ng4+ 21. Kg1) 20... Qh6 $1 $19 {[%emt 0:03:13]} 21. Bg2 {[%emt 0:02:14]} (21. Bf5 $142) 21... Nbc4 {[%emt 0:00:35]} 22. Rb3 $2 {[%emt 0:02:05]} (22. f4 Ng4+ 23. Kg1) 22... a5 {[%emt 0:01:16][%cal Ba7a5,Ba5a4][%mdl 32]} 23. Qa1 {[%emt 0:00:53]} (23. bxa5 $142 Nxa5 24. Rb1) 23... a4 {[%emt 0:00:55]} 24. Rbb1 {[%emt 0:00:50]} Nd3+ {[%emt 0:01:07]} 25. Kg1 {[%emt 0:00:01]} Nxb4 {[%emt 0:00:25] Strongly threatening ...Nc2. Pair of Knights!} 26. Qc3 {[%emt 0:03:00] Inhibits Nc2.} c5 {[%emt 0:00:55]} 27. Bf2 {[%emt 0:00:25]} Qd2 {[%emt 0:00:38]} 28. Bf1 {[%emt 0:00:19]} a3 {[%emt 0:00:47]} 29. Be1 {[%emt 0:00:01]} Qe3+ {[%emt 0:00:33]} 30. Bf2 {[%emt 0:00:20]} Qd2 {[%emt 0:00:12]} 31. Be1 $1 {[%emt 0:00:19]} Qe3+ {[%emt 0:00:00]} 32. Bf2 $1 {[%emt 0:00:00]} Qd3 {[%emt 0:00:00]} 33. Ra1 {[%emt 0:00:00]} a2 {[%emt 0:00:00]} 34. Kg2 {[%emt 0:00:00]} h5 {[%emt 0:00:00] Black is clearly winning.} 35. Qc1 {[%emt 0:00:00]} (35. Qxd3 $142 Rxd3 36. Nc1) 35... Nd2 {[%emt 0:00:00]} 36. Qc3 {[%emt 0:00:00]} Nxf1 {[%emt 0:00:00]} 37. Kxf1 {[%emt 0:00:00]} Rh6 {[%emt 0:00:00]} 38. Be1 {[%emt 0:00:00]} Ra6 {[%emt 0:00:00] Threatens to win with ...Nc2.} 39. Qe5+ {[%emt 0:00:00]} Be7 {[%emt 0:00:00]} 40. Kf2 {[%emt 0:00:00]} Nc2 {[%emt 0:00:00] Weighted Error Value: White=0.48/Black=0.44} 0-1

[Event "Cattolica Chess Festival 2022"]
[Site "Cattolica"]
[Date "2022.06.07"]
[Round "4.5"]
[White "Bernadskiy, Vitaliy"]
[Black "Kolb, Tobias"]
[Result "1-0"]
[ECO "B10"]
[WhiteElo "2636"]
[BlackElo "2345"]
[Annotator "TA"]
[PlyCount "87"]
[EventDate "2022.06.04"]
[EventCountry "ITA"]
[SourceTitle "playchess.com"]
[Source "ChessBase"]
[SourceQuality "1"]
[TimeControl "5400+30"]

{[%evp 13,87,-10,-10,-22,-20,-20,-12,-10,-17,-22,-7,-20,-7,-7,-7,-6,-8,-12,47,71,93,102,116,124,122,128,119,60,60,60,60,68,61,58,60,59,58,79,66,28,58,53,69,60,122,136,139,114,222,230,289,284,370,383,370,375,370,365,414,368,409,412,460,382,425,400,494,491,479,481,606,575,29969,29971,29976,29977]} 1. e4 {[%emt 0:36:14]} c6 {[%emt 0:30:05]} 2. c4 {[%emt 0:00:07]} d5 {[%emt 0:00:05]} 3. exd5 {[%emt 0:00:08]} cxd5 {[%emt 0:00:05]} 4. cxd5 {[%emt 0:00:08]} Nf6 {[%emt 0:00:04]} 5. Qa4+ {[%emt 0:00:02]} Nbd7 {[%emt 0:00:15]} 6. Nc3 {[%emt 0:00:03]} g6 {[%emt 0:00:12]} 7. Bc4 {[%emt 0:00:23]} Bg7 {[%emt 0:00:04]} 8. Nf3 {[%emt 0:00:44] B10: Caro-Kann: 2 d3 and 2 c4.} O-O {[%emt 0:00:08][%mdl 1024] Black has compensation.} 9. d3 {[%emt 0:00:10]} a6 {[%emt 0:01:24]} 10. Qa3 {[%emt 0:00:06] The position is equal.} b6 {[%emt 0:00:29][%cal Bb7b6,Bb6b5][%mdl 32]} 11. O-O {[%emt 0:00:32]} Bb7 {[%emt 0:00:13]} 12. Re1 {[%emt 0:02:48]} Re8 {[%emt 0:01:05]} 13. Be3 {[%emt 0:01:59]} b5 {[%emt 0:03:30]} 14. Bb3 {[%emt 0:00:05]} Nb6 {[%emt 0:01:28]} 15. d6 {[%emt 0:03:46] [#] And now Bxb6 would win.} e6 {[%emt 0:17:44] [#]} (15... Bxf3 $11 16. gxf3 exd6) 16. Ne4 $146 {[%emt 0:05:20]} ({Predecessor:} 16. Ne5 Bf8 17. Bc5 Nc8 18. Qb4 Nxd6 19. a4 a5 20. Qf4 b4 21. Ne4 Ndxe4 22. Bxf8 Rxf8 23. dxe4 {1-0 (42) Jobava,B (2588)-Yuan,Q (2373) Chess.com INT 2022}) 16... Nbd5 {[%emt 0:08:41]} 17. Bg5 {[%emt 0:01:51] aiming for Bxd5.} h6 {[%emt 0:08:35]} 18. Bxd5 {[%emt 0:02:15]} Bxd5 {[%emt 0:00:09]} 19. Bxf6 {[%emt 0:01:34]} Bxf6 {[%emt 0:00:20] This bishop pair is nice.} 20. d7 {[%emt 0:00:45]} (20. Nxf6+ $16 Qxf6 21. Ne5) 20... Rf8 {[%emt 0:00:07][%cal Be8f8,Bf8f7,Bf7d7][%mdl 32]} 21. Nxf6+ {[%emt 0:00:39]} Qxf6 {[%emt 0:00:03]} 22. Ne5 {[%emt 0:00:07]} Qg5 {[%emt 0:03:48][%csl Gd5][%cal Rg5g2]} 23. f3 $1 $40 {[%emt 0:00:28][%mdl 128] White mounts an attack. Active counter play!} f6 {[%emt 0:09:47]} 24. Ng4 {[%emt 0:04:43] Rac1 is the strong threat.} Rf7 $1 {[%emt 0:10:04]} 25. Qd6 {[%emt 0:10:56]} Rd8 {[%emt 0:00:04]} 26. Kh1 {[%emt 0:01:48]} (26. Rac1 $5 {[%cal Rc1c8]} Rfxd7 27. Qxa6 $14) 26... Rfxd7 {[%emt 0:02:56]} 27. Qxa6 {[%emt 0:00:17]} Qf4 {[%emt 0:00:04]} 28. Ne3 {[%emt 0:01:07]} (28. Qxb5 {[#]} Bxf3 $1 29. Nf2 (29. Nxh6+ Kg7 $15) 29... Rb7 $11) 28... Qd6 {[%emt 0:01:38] Black is now going downhill.} (28... Qa4 $1 $14 29. Qb6 Rd6) 29. Qxb5 $16 {[%emt 0:02:07]} Rb8 {[%emt 0:00:06]} 30. Qa5 {[%emt 0:00:53]} Rxb2 {[%emt 0:01:10]} (30... e5 $16 {might work better.}) 31. Qc3 $1 $18 {[%emt 0:00:21][%csl LRb2,LRf6]} Rb8 {[%emt 0:00:00]} 32. Qxf6 {[%emt 0:00:00]} Rf8 {[%emt 0:00:00]} 33. Qxg6+ {[%emt 0:00:00]} Rg7 {[%emt 0:00:00]} 34. Qh5 {[%emt 0:00:00]} (34. Qxh6 Rh7 35. Qg6+ Rg7 $18) 34... Kh7 {[%emt 0:00:00]} 35. Nxd5 {[%emt 0:00:00]} ({Weaker is} 35. Ng4 Rxf3 36. Re5 (36. Qxh6+ Kg8 $16) 36... Qf8 $16) 35... exd5 {[%emt 0:00:00]} 36. Re2 {[%emt 0:00:00]} Rg5 {[%emt 0:00:00]} 37. Qh4 {[%emt 0:00:00]} Qg6 {[%emt 0:00:00]} 38. Qd4 {[%emt 0:00:00]} Rf7 {[%emt 0:00:00]} 39. Rae1 {[%emt 0:00:00]} ({Not} 39. Re8 Rg7 40. Re2 Rxg2 $16) 39... Rg7 {[%emt 0:00:00]} 40. g4 {[%emt 0:00:00]} Qf7 {[%emt 0:00:00]} 41. Kg2 {[%emt 0:00:00]} h5 {[%emt 0:00:00]} 42. h3 {[%emt 0:00:00][%cal Bh2h3,Bh3g4][%mdl 32] Hoping for Re6.} hxg4 {[%emt 0:00:00]} 43. hxg4 {[%emt 0:29:34]} Qf5 {[%emt 0:00:00]} 44. Re7 {[%emt 0:00:00] Weighted Error Value: White=0.09 (flawless) /Black=0.46} 1-0

[Event "Cattolica Chess Festival 2022"]
[Site "Cattolica"]
[Date "2022.06.07"]
[Round "4.6"]
[White "Jobava, Baadur"]
[Black "Shahil Dey"]
[Result "1/2-1/2"]
[WhiteElo "2600"]
[BlackElo "2369"]
[Annotator "TA"]
[PlyCount "40"]
[EventDate "2022.06.04"]
[EventCountry "ITA"]
[SourceTitle "playchess.com"]
[Source "ChessBase"]
[SourceQuality "1"]
[TimeControl "5400+30"]

{[%evp 18,19,24,20]} 1. d4 {[%emt 0:33:02]} d5 {[%emt 0:30:01]} 2. c4 {[%emt 0:00:03]} c6 {[%emt 0:00:01]} 3. Nf3 {[%emt 0:00:03]} Nf6 {[%emt 0:00:04]} 4. cxd5 {[%emt 0:00:02]} cxd5 {[%emt 0:00:03]} 5. Nc3 {[%emt 0:00:03]} Nc6 {[%emt 0:00:03]} 6. Bf4 {[%emt 0:00:03]} e6 {[%emt 0:00:03]} 7. e3 {[%emt 0:00:04]} Bd6 {[%emt 0:00:04]} 8. Bxd6 {[%emt 0:00:03]} Qxd6 {[%emt 0:00:03]} 9. Bd3 {[%emt 0:00:04]} O-O {[%emt 0:00:09]} 10. O-O {[%emt 0:00:02] [#]} {Predecessor:} Bd7 $146 {D13: Slav Defence: Exchange variation without ...Bf5.} 11. Rc1 Rac8 12. a3 a6 13. h3 Rc7 14. e4 dxe4 15. Nxe4 Nxe4 16. Bxe4 h6 17. d5 exd5 18. Bxd5 Be6 19. Bxc6 Rxc6 20. Rxc6 Qxc6 {½-½ (28) Ju,W (2560)-Bai,J (2618) Xinghua 2020} 1/2-1/2

[Event "Cattolica Chess Festival 2022"]
[Site "Cattolica"]
[Date "2022.06.07"]
[Round "4.7"]
[White "Korneev, Oleg"]
[Black "Heinemann, Josefine"]
[Result "1/2-1/2"]
[ECO "D02"]
[WhiteElo "2521"]
[BlackElo "2300"]
[Annotator "TA"]
[PlyCount "49"]
[EventDate "2022.06.04"]
[EventCountry "ITA"]
[SourceTitle "playchess.com"]
[Source "ChessBase"]
[SourceQuality "1"]
[TimeControl "5400+30"]

{[%evp 14,49,-23,-22,-29,-51,14,-29,-21,-32,0,-6,-18,-79,-51,-43,-14,-20,-12,-43,-37,-38,-34,-35,-25,-33,-30,-62,-58,-48,-61,-59,-27,-27,-25,-20,-10,-18]} 1. d4 {[%emt 0:35:13]} Nf6 {[%emt 0:30:14]} 2. Nf3 {[%emt 0:00:07]} d5 {[%emt 0:00:16]} 3. Bf4 {[%emt 0:00:06]} c5 {[%emt 0:00:33]} 4. e3 {[%emt 0:01:38]} Nc6 {[%emt 0:00:06]} 5. c3 {[%emt 0:01:32]} Qb6 {[%emt 0:00:50]} 6. Qb3 {[%emt 0:05:18]} c4 {[%emt 0:00:06]} 7. Qc2 $1 {[%emt 0:00:03] The main line 7.Qc2 scores better than 7.Qxb6.} Bf5 {[%emt 0:00:53]} 8. Qc1 {[%emt 0:00:10]} ({But not} 8. Qxf5 $2 Qxb2 9. Nbd2 Qxa1+ $19) 8... Nh5 {[%emt 0:00:41][%cal Bf6h5,Bh5g7,Bg7e6][%mdl 32] D02: 1 d4 d5 2 Nf3 sidelines, including 2...Nf6 3 g3 and 2...Nf6 3 Bf4.} 9. Be5 {[%emt 0:01:24]} Nxe5 {[%emt 0:06:48]} (9... f6 $15 10. Bg3 e5) 10. dxe5 {[%emt 0:05:36][%cal Ob2b3]} (10. Nxe5 $5 {[%cal Rg2g4]} Nf6 11. b3 $11) 10... g6 {[%emt 0:03:08] [#] Black has an edge.} 11. Nbd2 $146 {[%emt 0:00:55]} ({Predecessor:} 11. Nd4 Bd7 12. Be2 Ng7 13. O-O Ne6 14. Bf3 Nxd4 15. exd4 Be6 16. b3 cxb3 17. axb3 {1-0 (32) Dominguez,J (2240)-Reyes Capellan,E (2108) Santo Domingo 2018}) 11... Ng7 {[%emt 0:06:19]} 12. a4 {[%emt 0:12:42][%cal Ob2b3]} Ne6 {[%emt 0:04:42]} 13. e4 {[%emt 0:03:54]} (13. b3 $11 {remains equal.}) 13... dxe4 {[%emt 0:04:30]} 14. Nxc4 {[%emt 0:00:12]} Qc7 {[%emt 0:00:07]} 15. Nd4 {[%emt 0:11:36]} Bg7 {[%emt 0:02:26]} 16. Be2 {[%emt 0:00:32]} h5 {[%emt 0:01:45]} ({Don't take} 16... Bxe5 17. Nb5 (17. Nxe5 Qxe5 18. g4 Nxd4 $15) 17... Qb8 18. g4 $14) 17. O-O {[%emt 0:13:36]} Bxe5 {[%emt 0:01:26]} 18. Nxe5 {[%emt 0:00:09]} Qxe5 {[%emt 0:00:04]} 19. Nxe6 {[%emt 0:02:19]} Qxe6 {[%emt 0:02:26]} 20. Bb5+ {[%emt 0:00:06]} Kf8 {[%emt 0:00:07]} 21. Rd1 {[%emt 0:01:13]} Kg7 {[%emt 0:05:08]} 22. Bd7 {[%emt 0:00:03]} Qe5 {[%emt 0:00:12]} 23. Bxf5 {[%emt 0:00:11]} Qxf5 {[%emt 0:00:02]} 24. Qe3 {[%emt 0:00:04]} b6 {[%emt 0:01:06]} 25. Rd4 {[%emt 0:00:26] Weighted Error Value: White=0.16 (very precise) /Black=0.17 (very precise)} 1/2-1/2

[Event "Cattolica Chess Festival 2022"]
[Site "Cattolica"]
[Date "2022.06.07"]
[Round "4.8"]
[White "Ceres, Dragos"]
[Black "Kjartansson, Gudmundur"]
[Result "1-0"]
[ECO "B23"]
[WhiteElo "2380"]
[BlackElo "2452"]
[Annotator "TA"]
[PlyCount "85"]
[EventDate "2022.06.04"]
[EventCountry "ITA"]
[SourceTitle "playchess.com"]
[Source "ChessBase"]
[SourceQuality "1"]
[TimeControl "5400+30"]

{[%evp 9,85,0,8,-11,-8,-32,-32,-25,-35,-33,15,12,2,4,24,22,75,64,60,73,97,76,78,69,82,47,207,211,272,259,237,216,277,221,225,217,227,228,226,220,220,211,223,214,290,296,338,327,355,348,347,332,335,305,283,346,340,321,298,328,357,350,358,342,337,343,341,327,402,401,594,588,990,1017,933,909,893,819]} 1. e4 {[%emt 0:35:52]} c5 {[%emt 0:30:19]} 2. Nc3 {[%emt 0:00:19]} Nc6 {[%emt 0:00:22]} 3. Bb5 {[%emt 0:00:13]} Nd4 {[%emt 0:00:56]} 4. a4 {[%emt 0:00:48]} a6 {[%emt 0:03:41]} 5. Bc4 {[%emt 0:01:01]} e6 {[%emt 0:01:13]} 6. Nf3 {[%emt 0:00:38] B23: Closed Sicilian: Lines without g3.} Nf6 {[%emt 0:05:39]} 7. e5 {[%emt 0:12:24]} d5 {[%emt 0:01:07]} 8. exd6 {[%emt 0:01:36] Black is slightly better.} Bxd6 {[%emt 0:01:04]} 9. d3 {[%emt 0:01:13] [#]} e5 $146 {[%emt 0:10:47]} (9... Bd7 $15) ({Predecessor:} 9... O-O 10. O-O Bd7 11. Bg5 Bc6 12. Ne4 Be7 13. Nxd4 cxd4 14. Bxf6 Bxf6 15. Qe2 Be7 {½-½ (58) Onischuk,V (2633)-Svane,F (2421) Chess.com INT 2020}) 10. Ng5 $11 {[%emt 0:03:13]} O-O {[%emt 0:00:39]} 11. O-O {[%emt 0:00:24]} Bg4 {[%emt 0:01:49]} 12. f3 $36 {[%emt 0:01:51][%mdl 2048] White has the initiative.} Bd7 {[%emt 0:00:09]} (12... Bf5 $11 {keeps the balance.}) 13. Nce4 $16 {[%emt 0:03:01]} Be7 {[%emt 0:00:32]} 14. c3 {[%emt 0:03:43]} Nf5 {[%emt 0:05:04]} 15. Qb3 {[%emt 0:01:48][%cal Rg5f7] Inhibits b5.} Be8 {[%emt 0:10:13]} 16. Qxb7 {[%emt 0:01:05]} Rb8 $1 {[%emt 0:06:55]} 17. Qxa6 {[%emt 0:05:12] White is much more active.} Ra8 $2 {[%emt 0:05:31] A mistake that costs the game.} (17... Kh8 $1 $14) 18. Qb7 $18 {[%emt 0:00:35]} Rb8 {[%emt 0:00:09]} 19. Nxf6+ $1 {[%emt 0:00:53]} Bxf6 {[%emt 0:00:20] [#]} 20. Qe4 {[%emt 0:00:17]} g6 {[%emt 0:00:18]} 21. Nh3 {[%emt 0:02:55][%cal Bg5h3,Bh3f2,Bf2d3,Bd3b4,Bb4d5,Bd5b6][%mdl 32]} Nd6 {[%emt 0:00:18]} 22. Qe2 {[%emt 0:02:44] Black must now prevent Bh6.} Nxc4 {[%emt 0:00:47]} 23. dxc4 {[%emt 0:00:04]} Bc6 {[%emt 0:01:55]} 24. Be3 {[%emt 0:02:43]} Be7 {[%emt 0:07:47]} 25. Nf2 {[%emt 0:00:12]} Qc7 {[%emt 0:02:19]} 26. Nd3 {[%emt 0:01:31]} Rfe8 {[%emt 0:01:23]} 27. Qf2 {[%emt 0:01:22]} ({Don't do} 27. Nxc5 Bxc5 28. Bxc5 Bxf3 $18) (27. Bxc5 $6 e4 28. fxe4 Bxe4 $18) 27... Ra8 {[%emt 0:01:18]} 28. Bxc5 {[%emt 0:00:39]} ({Resist} 28. Nxc5 Bxc5 29. Bxc5 Bxa4 $18) 28... Rxa4 {[%emt 0:00:44]} 29. Rxa4 {[%emt 0:00:09]} Bxa4 {[%emt 0:00:03]} 30. Bxe7 {[%emt 0:00:11]} Qxe7 {[%emt 0:01:21]} 31. Nb4 {[%emt 0:03:07]} Bb3 {[%emt 0:00:27]} 32. Nd5 {[%emt 0:05:19]} Qd6 {[%emt 0:00:00]} 33. Qb6 {[%emt 0:00:00]} Qxb6+ {[%emt 0:00:00]} 34. Nxb6 {[%emt 0:00:00][%mdl 4096] Endgame KRB-KRN} Re6 {[%emt 0:00:00]} 35. c5 {[%emt 0:00:00]} Rc6 {[%emt 0:00:00]} 36. c4 {[%emt 0:00:00][%cal Bc3c4,Bc4c5][%mdl 32]} ({Weaker is} 36. Nd7 Be6 $18) 36... Rxc5 {[%emt 0:00:00] [#]} 37. Rc1 $1 {[%emt 0:00:00]} Rc6 {[%emt 0:00:00]} 38. c5 {[%emt 0:00:00] aiming for Rc3.} f5 {[%emt 0:00:00]} 39. Rc3 {[%emt 0:00:00]} Bd1 {[%emt 0:00:00]} (39... Be6 $142 40. b4 Rc7) 40. Kf2 {[%emt 0:00:00] b4 is the strong threat. White is clearly winning.} e4 {[%emt 0:00:00]} 41. b4 {[%emt 0:00:00]} exf3 {[%emt 0:00:00]} 42. gxf3 {[%emt 0:00:00]} f4 {[%emt 0:00:00]} 43. Ke1 {[%emt 0:00:00] Weighted Error Value: White=0.06 (flawless) /Black=0.30} 1-0

[Event "Cattolica Chess Festival 2022"]
[Site "Cattolica"]
[Date "2022.06.07"]
[Round "4.9"]
[White "Padmini, Rout"]
[Black "Buksa, Nataliya"]
[Result "1/2-1/2"]
[ECO "B33"]
[WhiteElo "2348"]
[BlackElo "2406"]
[Annotator "TA"]
[PlyCount "73"]
[EventDate "2022.06.04"]
[EventCountry "ITA"]
[SourceTitle "playchess.com"]
[Source "ChessBase"]
[SourceQuality "1"]
[TimeControl "5400+30"]

{[%evp 18,73,6,0,0,0,2,12,8,11,8,15,22,13,6,0,8,10,16,13,14,18,0,0,40,22,89,81,83,78,75,81,81,41,36,26,70,68,74,77,73,0,0,0,0,0,0,0,0,0,0,0,14,0,0,0,8,0]} 1. e4 {[%emt 0:30:03]} c5 {[%emt 0:32:10]} 2. Nf3 {[%emt 0:00:13][%cal Bg1f3,Bf3d4,Bd4b5][%mdl 32]} Nc6 {[%emt 0:00:05]} 3. d4 {[%emt 0:00:09]} cxd4 {[%emt 0:00:04]} 4. Nxd4 {[%emt 0:00:06]} Nf6 {[%emt 0:00:03]} 5. Nc3 {[%emt 0:00:10]} e5 {[%emt 0:00:03]} 6. Ndb5 {[%emt 0:00:18]} d6 {[%emt 0:00:06]} 7. Nd5 {[%emt 0:00:11]} Nxd5 {[%emt 0:00:05]} 8. exd5 {[%emt 0:00:05]} Nb8 {[%emt 0:00:02]} 9. c4 {[%emt 0:00:20]} Be7 {[%emt 0:00:09]} 10. Bd3 {[%emt 0:00:39]} a6 {[%emt 0:00:50] B33: Sicilian: Pelikan and Sveshnikov Variations.} 11. Nc3 {[%emt 0:00:36]} Nd7 {[%emt 0:00:30]} 12. O-O {[%emt 0:01:14]} O-O {[%emt 0:00:03]} 13. Qc2 {[%emt 0:08:15]} g6 {[%emt 0:03:43]} 14. Bh6 {[%emt 0:00:12]} Re8 {[%emt 0:00:04]} 15. b4 {[%emt 0:01:59]} f5 {[%emt 0:02:02]} 16. Rad1 {[%emt 0:05:29][%cal Oc4c5]} b6 {[%emt 0:04:20] Prevents c5.} 17. f3 $36 {[%emt 0:06:57][%mdl 2048] [#] White has some pressure.} Bg5 $146 {[%emt 0:11:12]} ({Predecessor:} 17... Nf6 18. Qf2 Kh8 19. Be3 Nd7 20. Qd2 Bb7 21. a4 Bh4 22. g3 Be7 23. Rb1 Rb8 24. Rfe1 Rf8 25. Bh6 Rf7 26. Kg2 Qg8 27. Qc2 Qd8 28. Qc1 Qc7 {½-½ (28) Willert,F-Siljanovski,D CiF corr 2001}) 18. Bxg5 {[%emt 0:03:04]} Qxg5 {[%emt 0:00:04]} 19. Qf2 {[%emt 0:00:31]} Qd8 {[%emt 0:15:13]} 20. Bc2 {[%emt 0:01:41][%cal Bd3c2,Bc2a4,Ba4c6][%mdl 32]} Kh8 {[%emt 0:04:57]} (20... Qc7 $5 {[%cal Rc7c4]}) 21. Ba4 {[%emt 0:03:20]} Qc7 {[%emt 0:00:39]} (21... b5 $11 22. cxb5 Nb6) 22. Bc6 $16 {[%emt 0:02:27]} Rb8 {[%emt 0:00:03]} 23. Rfe1 {[%emt 0:01:19]} Rf8 {[%emt 0:02:01]} 24. f4 {[%emt 0:04:28] 0x0.00222cbc10e7dp-1022s more active pieces.} e4 {[%emt 0:04:57]} 25. Qd4+ {[%emt 0:01:50]} Nf6 {[%emt 0:02:30]} 26. Na4 {[%emt 0:10:39]} b5 {[%emt 0:11:53]} 27. cxb5 {[%emt 0:00:40]} axb5 {[%emt 0:00:03]} 28. Nc3 {[%emt 0:00:17]} Bd7 {[%emt 0:00:09] [#]} 29. Rc1 {[%emt 0:02:54]} ({Better is} 29. a4 $1 $16) 29... Bxc6 $11 {[%emt 0:04:58] The position is equal.} 30. dxc6 {[%emt 0:10:14]} Qxc6 {[%emt 0:00:04]} 31. Nxe4 $1 {[%emt 0:00:11][%mdl 64] Pin} Qd5 {[%emt 0:00:30]} 32. Qxd5 {[%emt 0:00:23]} Nxd5 {[%emt 0:00:03]} 33. Nxd6 {[%emt 0:00:17]} Rb6 {[%emt 0:00:00]} 34. Nc8 {[%emt 0:00:00]} Rb7 {[%emt 0:00:00]} 35. Nd6 {[%emt 0:00:00]} Rb6 {[%emt 0:00:00]} 36. Nc8 {[%emt 0:00:00]} Rb7 {[%emt 0:00:00]} 37. Nd6 {[%emt 0:00:00] Weighted Error Value: White=0.08 (flawless) /Black=0.10 (very precise)} 1/2-1/2